[Event "DVM U14w 2019"]
[Site "Neumuenster"]
[Date "2019.12.27"]
[Round "2"]
[White "Buchholz, Maja"]
[Black "Niesch, Sarah"]
[Result "1-0"]
[ECO "A20"]
[WhiteElo "1666"]
[BlackElo "1043"]
[Annotator "NA"]
[PlyCount "101"]
[EventDate "2019.12.27"]
[EventType "team-tourn"]
[EventRounds "7"]
[EventCountry "GER"]
[SourceTitle "playchess.com"]
[Source "ChessBase"]
[SourceQuality "1"]
[WhiteTeam "VSG 1880 Offenbach"]
[BlackTeam "SC Leipzig-Lindenau"]
[TimeControl "40/5400+30:1800+30"]

1. c4 {[%emt 0:00:00]} e5 {[%emt 0:00:00]} 2. g3 {[%emt 0:00:00]} Nf6 {[%emt 0:00:23]} 3. Bg2 {[%emt 0:00:00]} d6 {[%emt 0:00:28]} 4. Nc3 {[%emt 0:00:00]} Be7 {[%emt 0:00:39]} 5. d3 {[%emt 0:00:02]} Nc6 {[%emt 0:00:09]} 6. Nf3 {[%emt 0:00:07]} Be6 {[%emt 0:00:12]} 7. Rb1 {[%emt 0:00:09]} h6 {[%emt 0:00:24]} 8. b4 {[%emt 0:00:21]} a5 {[%emt 0:00:59]} 9. b5 {[%emt 0:00:25]} Nb4 {[%emt 0:00:37]} 10. a3 {[%emt 0:00:08]} c5 {[%emt 0:00:42]} 11. axb4 {[%emt 0:00:37]} cxb4 {[%emt 0:00:14]} 12. Na2 {[%emt 0:00:24]} d5 {[%emt 0:00:31]} 13. Nxe5 {[%emt 0:00:33]} dxc4 {[%emt 0:00:30]} 14. Nxc4 {[%emt 0:00:33]} Bxc4 {[%emt 0:00:57]} 15. dxc4 {[%emt 0:00:08]} Qxd1+ {[%emt 0:00:08]} 16. Kxd1 {[%emt 0:00:04]} Rd8+ {[%emt 0:00:13]} 17. Kc2 {[%emt 0:00:25]} b6 {[%emt 0:00:17]} 18. Be3 {[%emt 0:00:13]} Rb8 {[%emt 0:00:38]} 19. Rhd1 {[%emt 0:00:31]} O-O {[%emt 0:00:48]} 20. Bf4 {[%emt 0:01:06]} Rbc8 {[%emt 0:00:23]} 21. Bc6 {[%emt 0:00:20]} g5 {[%emt 0:02:49]} 22. Be3 {[%emt 0:00:12]} Rb8 {[%emt 0:00:15]} 23. h3 {[%emt 0:00:15]} Nh7 {[%emt 0:00:52]} 24. Rd7 {[%emt 0:00:33]} Bd8 {[%emt 0:01:30]} 25. c5 {[%emt 0:00:53]} f5 {[%emt 0:03:34]} 26. Rbd1 {[%emt 0:01:44]} bxc5 {[%emt 0:01:06]} 27. Bxc5 {[%emt 0:00:18]} Bb6 {[%emt 0:00:29]} 28. Bxf8 {[%emt 0:00:29]} Nxf8 {[%emt 0:00:14]} 29. Re7 {[%emt 0:01:11]} Bc5 {[%emt 0:01:36]} 30. Re5 {[%emt 0:00:44]} Bxf2 {[%emt 0:00:18]} 31. Rxf5 {[%emt 0:00:16]} Bxg3 {[%emt 0:00:15]} 32. Rg1 {[%emt 0:00:22]} Bf4 {[%emt 0:01:03]} 33. Kb3 {[%emt 0:00:21]} Rd8 {[%emt 0:01:15]} 34. Rxf4 {[%emt 0:00:09]} Ne6 {[%emt 0:00:26]} 35. Rf2 {[%emt 0:01:44]} Nd4+ {[%emt 0:00:52]} 36. Ka4 {[%emt 0:00:19]} Nc2 {[%emt 0:01:44]} 37. Kxa5 {[%emt 0:00:58]} b3 {[%emt 0:00:09]} 38. Nc3 {[%emt 0:00:03]} Na3 {[%emt 0:00:49]} 39. e4 {[%emt 0:00:27]} Nc4+ {[%emt 0:00:40]} 40. Kb4 {[%emt 0:00:22]} Rd4 {[%emt 0:00:46]} 41. Bd5+ {[%emt 0:30:16]} Kg7 {[%emt 0:30:08]} 42. Bxc4 {[%emt 0:00:05]} Rd6 {[%emt 0:00:25]} 43. h4 {[%emt 0:00:35]} Kg6 {[%emt 0:00:17]} 44. Bf7+ {[%emt 0:00:11]} Kg7 {[%emt 0:00:10]} 45. h5 {[%emt 0:00:22]} Rd4+ {[%emt 0:00:21]} 46. Bc4 {[%emt 0:00:07]} Rd8 {[%emt 0:00:24]} 47. Rf7+ {[%emt 0:00:07]} Kh8 {[%emt 0:00:06]} 48. Rgf1 {[%emt 0:00:10]} b2 {[%emt 0:00:27]} 49. R1f6 {[%emt 0:00:12]} Kg8 {[%emt 0:00:54]} 50. Rf8+ {[%emt 0:00:12]} Kg7 {[%emt 0:00:09]} 51. R6f7# {[%emt 0:00:04] normal} 1-0

[Event "DVM U14w 2019"]
[Site "Neumuenster"]
[Date "2019.12.27"]
[Round "2"]
[White "Oswald, Hannah"]
[Black "Müller, Helene"]
[Result "1-0"]
[ECO "B78"]
[WhiteElo "1647"]
[BlackElo "1545"]
[Annotator "NA"]
[PlyCount "118"]
[EventDate "2019.12.27"]
[EventType "team-tourn"]
[EventRounds "7"]
[EventCountry "GER"]
[SourceTitle "playchess.com"]
[Source "ChessBase"]
[SourceQuality "1"]
[WhiteTeam "SG Leipzig"]
[BlackTeam "SC Borussia Lichtenberg"]
[TimeControl "40/5400+30:1800+30"]

1. e4 {[%emt 0:00:00]} c5 {[%emt 0:00:00]} 2. Nf3 {[%emt 0:00:00]} d6 {[%emt 0:00:00]} 3. d4 {[%emt 0:00:00]} cxd4 {[%emt 0:00:00]} 4. Nxd4 {[%emt 0:00:00]} Nf6 {[%emt 0:00:00]} 5. Nc3 {[%emt 0:00:04]} g6 {[%emt 0:00:00]} 6. Be3 {[%emt 0:00:13]} Bg7 {[%emt 0:00:04]} 7. f3 {[%emt 0:00:06]} Nc6 {[%emt 0:00:13]} 8. Bc4 {[%emt 0:00:06]} Bd7 {[%emt 0:00:10]} 9. Qd2 {[%emt 0:00:08]} O-O {[%emt 0:00:13]} 10. O-O-O {[%emt 0:00:23]} Rc8 {[%emt 0:00:29]} 11. Bb3 {[%emt 0:00:07]} a6 {[%emt 0:02:18]} 12. g4 {[%emt 0:01:30]} b5 {[%emt 0:01:38]} 13. h4 {[%emt 0:04:24]} Na5 {[%emt 0:02:56]} 14. Bh6 {[%emt 0:02:05]} Nxb3+ {[%emt 0:00:32]} 15. Nxb3 {[%emt 0:03:00]} a5 {[%emt 0:06:08]} 16. Bxg7 {[%emt 0:01:48]} Kxg7 {[%emt 0:00:09]} 17. e5 {[%emt 0:04:35]} Ng8 {[%emt 0:10:42]} 18. exd6 {[%emt 0:01:39]} exd6 {[%emt 0:00:11]} 19. Qxd6 {[%emt 0:01:39]} Bc6 {[%emt 0:11:43]} 20. Qxd8 {[%emt 0:09:22]} Rfxd8 {[%emt 0:00:13]} 21. Nd4 {[%emt 0:00:55]} b4 {[%emt 0:09:15]} 22. Nxc6 {[%emt 0:01:47]} Rxd1+ {[%emt 0:00:26]} 23. Rxd1 {[%emt 0:00:11]} Rxc6 {[%emt 0:00:06]} 24. Ne4 {[%emt 0:04:51]} Ne7 {[%emt 0:15:52]} 25. Rd7 {[%emt 0:03:02]} Nc8 {[%emt 0:02:38]} 26. b3 {[%emt 0:06:16]} Ra6 {[%emt 0:06:13]} 27. Rc7 {[%emt 0:06:16]} Nd6 {[%emt 0:10:16]} 28. Nc5 {[%emt 0:02:31]} Ra8 {[%emt 0:01:35]} 29. Rd7 {[%emt 0:01:41]} Nb5 {[%emt 0:02:30]} 30. Ne6+ {[%emt 0:06:46]} Kg8 {[%emt 0:00:19]} 31. Ng5 {[%emt 0:00:40]} Ra7 {[%emt 0:02:55]} 32. Rxa7 {[%emt 0:03:48]} Nxa7 {[%emt 0:00:07]} 33. Ne4 {[%emt 0:01:15]} Nc6 {[%emt 0:03:04]} 34. Kb2 {[%emt 0:01:58]} Nd4 {[%emt 0:02:24]} 35. Nd2 {[%emt 0:01:04]} Kf8 {[%emt 0:02:11]} 36. c3 {[%emt 0:02:35]} bxc3+ {[%emt 0:01:16]} 37. Kxc3 {[%emt 0:00:10]} Nc6 {[%emt 0:00:22]} 38. Kc4 {[%emt 0:01:01]} Ke7 {[%emt 0:00:09]} 39. Kb5 {[%emt 0:00:33]} Kd6 {[%emt 0:00:30]} 40. Ne4+ {[%emt 0:00:43]} Kc7 {[%emt 0:00:22]} 41. Ng5 {[%emt 0:30:42]} Ne5 {[%emt 0:31:02]} 42. Kxa5 {[%emt 0:00:42]} h6 {[%emt 0:00:16]} 43. Ne4 {[%emt 0:02:22]} Nxf3 {[%emt 0:00:07]} 44. h5 {[%emt 0:00:42]} Ne5 {[%emt 0:03:52]} 45. Nf6 {[%emt 0:00:50]} Kd6 {[%emt 0:00:52]} 46. Ne4+ {[%emt 0:02:45]} Ke6 {[%emt 0:01:24]} 47. Nf2 {[%emt 0:03:58]} f5 {[%emt 0:03:06]} 48. gxf5+ {[%emt 0:01:52]} gxf5 {[%emt 0:00:29]} 49. b4 {[%emt 0:00:26]} Kd6 {[%emt 0:02:35]} 50. a4 {[%emt 0:01:31]} Kc7 {[%emt 0:00:26]} 51. Kb5 {[%emt 0:01:14]} Nc6 {[%emt 0:00:34]} 52. Kc5 {[%emt 0:01:05]} Kd7 {[%emt 0:00:00]} 53. Nd3 {[%emt 0:00:00]} Kc7 {[%emt 0:00:00]} 54. Nf4 {[%emt 0:00:00]} Kb7 {[%emt 0:00:00]} 55. b5 {[%emt 0:00:00]} Na5 {[%emt 0:00:00]} 56. Kb4 {[%emt 0:00:00]} Nc6+ {[%emt 0:00:00]} 57. bxc6+ {[%emt 0:00:00]} Kxc6 {[%emt 0:00:00]} 58. Kc4 {[%emt 0:00:00]} Kb6 {[%emt 0:00:00]} 59. Kd5 {[%emt 0:00:00]} Ka5 {[%emt 0:00:00] normal Ke4} 1-0

[Event "DVM U14w 2019"]
[Site "Neumuenster"]
[Date "2019.12.27"]
[Round "2"]
[White "Roncea, Andreea-Alexandra"]
[Black "Glowiak, Alexandra"]
[Result "1/2-1/2"]
[ECO "C50"]
[WhiteElo "1591"]
[BlackElo "1403"]
[Annotator "NA"]
[PlyCount "120"]
[EventDate "2019.12.27"]
[EventType "team-tourn"]
[EventRounds "7"]
[EventCountry "GER"]
[SourceTitle "playchess.com"]
[Source "ChessBase"]
[SourceQuality "1"]
[WhiteTeam "SC Papenburg"]
[BlackTeam "SV Traktor Priestewitz"]
[TimeControl "40/5400+30:1800+30"]

1. e4 {[%emt 0:00:00]} e5 {[%emt 0:00:00]} 2. Nf3 {[%emt 0:00:00]} Nc6 {[%emt 0:00:00]} 3. Bc4 {[%emt 0:00:00]} Bc5 {[%emt 0:00:00]} 4. d3 {[%emt 0:00:02]} d6 {[%emt 0:00:21]} 5. c3 {[%emt 0:00:54]} Nf6 {[%emt 0:00:59]} 6. Bb3 {[%emt 0:01:08]} Bg4 {[%emt 0:00:38]} 7. O-O {[%emt 0:00:52]} O-O {[%emt 0:00:31]} 8. Nbd2 {[%emt 0:00:35]} d5 {[%emt 0:05:29]} 9. exd5 {[%emt 0:04:16]} Nxd5 {[%emt 0:00:27]} 10. Ne4 {[%emt 0:01:22]} Bb6 {[%emt 0:01:28]} 11. h3 {[%emt 0:03:57]} Bxf3 {[%emt 0:07:01]} 12. Qxf3 {[%emt 0:01:10]} Nce7 {[%emt 0:05:14]} 13. a3 {[%emt 0:11:16]} c6 {[%emt 0:01:30]} 14. c4 {[%emt 0:11:51]} Nc7 {[%emt 0:01:24]} 15. c5 {[%emt 0:02:47]} Ba5 {[%emt 0:01:20]} 16. Nd6 {[%emt 0:03:24]} Ncd5 {[%emt 0:03:08]} 17. Nxb7 {[%emt 0:06:06]} Qc7 {[%emt 0:01:26]} 18. Nd6 {[%emt 0:03:58]} Qd7 {[%emt 0:06:17]} 19. Qg3 {[%emt 0:12:05]} Ng6 {[%emt 0:04:21]} 20. Qf3 {[%emt 0:08:47]} Nge7 {[%emt 0:01:19]} 21. Nc4 {[%emt 0:00:45]} Bc7 {[%emt 0:01:23]} 22. Re1 {[%emt 0:00:52]} Ng6 {[%emt 0:02:18]} 23. Be3 {[%emt 0:07:26]} Rad8 {[%emt 0:11:20]} 24. Rad1 {[%emt 0:03:31]} Rfe8 {[%emt 0:01:22]} 25. Bc2 {[%emt 0:02:04]} Re6 {[%emt 0:07:49]} 26. d4 {[%emt 0:02:59]} Rf6 {[%emt 0:02:03]} 27. Qg4 {[%emt 0:03:17]} Qxg4 {[%emt 0:01:07]} 28. hxg4 {[%emt 0:00:01]} Nxe3 {[%emt 0:00:39]} 29. fxe3 {[%emt 0:00:47]} exd4 {[%emt 0:05:48]} 30. Rxd4 {[%emt 0:02:23]} Rxd4 {[%emt 0:01:04]} 31. exd4 {[%emt 0:00:02]} Kf8 {[%emt 0:00:44]} 32. Bf5 {[%emt 0:02:25]} Ne7 {[%emt 0:01:13]} 33. Bc2 {[%emt 0:01:19]} Rf4 {[%emt 0:01:57]} 34. Re4 {[%emt 0:00:16]} Rxe4 {[%emt 0:00:28]} 35. Bxe4 {[%emt 0:00:01]} h6 {[%emt 0:01:13]} 36. Kf2 {[%emt 0:02:26]} f6 {[%emt 0:02:03]} 37. Ne3 {[%emt 0:01:24]} g6 {[%emt 0:03:52]} 38. b4 {[%emt 0:00:19]} a6 {[%emt 0:00:20]} 39. Bd3 {[%emt 0:00:36]} a5 {[%emt 0:01:00]} 40. b5 {[%emt 0:00:45]} cxb5 {[%emt 0:00:26]} 41. Bxb5 {[%emt 0:30:14]} Nc8 {[%emt 0:32:47]} 42. d5 {[%emt 0:01:00]} Be5 {[%emt 0:01:37]} 43. d6 {[%emt 0:00:00]} Nxd6 {[%emt 0:00:00]} 44. cxd6 {[%emt 0:00:00]} Bxd6 {[%emt 0:00:00]} 45. a4 {[%emt 0:00:00]} Ke7 {[%emt 0:00:00]} 46. Nc4 {[%emt 0:00:00]} Bc7 {[%emt 0:00:00]} 47. Ke3 {[%emt 0:00:00]} Ke6 {[%emt 0:00:00]} 48. Be8 {[%emt 0:00:00]} f5 {[%emt 0:00:00]} 49. Bxg6 {[%emt 0:00:00]} fxg4 {[%emt 0:00:00]} 50. Ke4 {[%emt 0:00:00]} Kf6 {[%emt 0:00:00]} 51. Bf5 {[%emt 0:00:00]} h5 {[%emt 0:00:00]} 52. Ne3 {[%emt 0:00:00]} Kg5 {[%emt 0:00:00]} 53. Nf1 {[%emt 0:00:00]} Bb8 {[%emt 0:00:00]} 54. Be6 {[%emt 0:00:00]} Bc7 {[%emt 0:00:00]} 55. Bd7 {[%emt 0:00:00]} Bd8 {[%emt 0:00:00]} 56. Ng3 {[%emt 0:00:00]} Bc7 {[%emt 0:00:00]} 57. Nf1 {[%emt 0:00:00]} Bd8 {[%emt 0:00:00]} 58. Bf5 {[%emt 0:00:00]} Bc7 {[%emt 0:00:00]} 59. Bd7 {[%emt 0:00:00]} Bd8 {[%emt 0:00:00]} 60. Bf5 {[%emt 0:00:00]} Bc7 {[%emt 0:00:00] normal} 1/2-1/2

[Event "DVM U14w 2019"]
[Site "Neumuenster"]
[Date "2019.12.27"]
[Round "2"]
[White "Evering, Enna"]
[Black "Moradi, Yassaman"]
[Result "1-0"]
[ECO "B90"]
[WhiteElo "1556"]
[BlackElo "1293"]
[Annotator "NA"]
[PlyCount "108"]
[EventDate "2019.12.27"]
[EventType "team-tourn"]
[EventRounds "7"]
[EventCountry "GER"]
[SourceTitle "playchess.com"]
[Source "ChessBase"]
[SourceQuality "1"]
[WhiteTeam "SC Papenburg"]
[BlackTeam "SV Traktor Priestewitz"]
[TimeControl "40/5400+30:1800+30"]

1. e4 {[%emt 0:00:00]} c5 {[%emt 0:00:00]} 2. Nf3 {[%emt 0:00:00]} d6 {[%emt 0:00:00]} 3. d4 {[%emt 0:00:04]} cxd4 {[%emt 0:00:00]} 4. Nxd4 {[%emt 0:00:11]} Nf6 {[%emt 0:00:03]} 5. Nc3 {[%emt 0:00:32]} a6 {[%emt 0:00:05]} 6. f3 {[%emt 0:00:37]} e5 {[%emt 0:00:12]} 7. Nb3 {[%emt 0:00:22]} Be7 {[%emt 0:00:11]} 8. Be3 {[%emt 0:00:34]} O-O {[%emt 0:00:18]} 9. Qd2 {[%emt 0:00:31]} b5 {[%emt 0:00:19]} 10. O-O-O {[%emt 0:00:36]} Bb7 {[%emt 0:00:15]} 11. g4 {[%emt 0:02:49]} Nbd7 {[%emt 0:00:13]} 12. Rg1 {[%emt 0:02:28]} Nb6 {[%emt 0:00:09]} 13. g5 {[%emt 0:04:24]} Nh5 {[%emt 0:00:44]} 14. Nd5 {[%emt 0:02:57]} Bxd5 {[%emt 0:01:01]} 15. exd5 {[%emt 0:00:15]} Rc8 {[%emt 0:00:22]} 16. Na5 {[%emt 0:04:18]} Nc4 {[%emt 0:00:36]} 17. Bxc4 {[%emt 0:04:55]} bxc4 {[%emt 0:00:21]} 18. Nc6 {[%emt 0:01:16]} Qc7 {[%emt 0:03:44]} 19. h4 {[%emt 0:06:04]} Rfe8 {[%emt 0:04:19]} 20. Qc3 {[%emt 0:05:54]} Qd7 {[%emt 0:01:59]} 21. Qxc4 {[%emt 0:02:57]} Qf5 {[%emt 0:01:04]} 22. Qxa6 {[%emt 0:08:53]} Nf4 {[%emt 0:01:30]} 23. Bxf4 {[%emt 0:03:57]} Qxf4+ {[%emt 0:00:20]} 24. Kb1 {[%emt 0:00:34]} Qf5 {[%emt 0:01:54]} 25. Qd3 {[%emt 0:11:19]} Qd7 {[%emt 0:00:57]} 26. Rdf1 {[%emt 0:02:42]} Bd8 {[%emt 0:00:28]} 27. Nxd8 {[%emt 0:01:17]} Rcxd8 {[%emt 0:00:17]} 28. Qe4 {[%emt 0:04:03]} Ra8 {[%emt 0:00:29]} 29. b3 {[%emt 0:10:11]} Qa7 {[%emt 0:00:26]} 30. a4 {[%emt 0:01:03]} Reb8 {[%emt 0:00:08]} 31. Kc1 {[%emt 0:01:01]} Qc5 {[%emt 0:00:46]} 32. Qd3 {[%emt 0:02:32]} Qa3+ {[%emt 0:00:50]} 33. Kd1 {[%emt 0:03:54]} Rb4 {[%emt 0:01:16]} 34. Rg4 {[%emt 0:04:24]} Rab8 {[%emt 0:00:57]} 35. Rxb4 {[%emt 0:01:59]} Rxb4 {[%emt 0:00:07]} 36. Qc3 {[%emt 0:00:47]} g6 {[%emt 0:00:29]} 37. Ke2 {[%emt 0:01:17]} Rxa4 {[%emt 0:00:20]} 38. Qc8+ {[%emt 0:00:44]} Kg7 {[%emt 0:00:06]} 39. bxa4 {[%emt 0:00:12]} Qxa4 {[%emt 0:00:12]} 40. Rh1 {[%emt 0:01:47]} Qb5+ {[%emt 0:00:16]} 41. Kf2 {[%emt 0:32:04]} Qxd5 {[%emt 0:30:11]} 42. Qc3 {[%emt 0:00:00]} Qe6 {[%emt 0:00:00]} 43. Kg2 {[%emt 0:00:00]} d5 {[%emt 0:00:00]} 44. Re1 {[%emt 0:00:00]} d4 {[%emt 0:00:00]} 45. Qc5 {[%emt 0:00:00]} f6 {[%emt 0:00:00]} 46. gxf6+ {[%emt 0:00:00]} Kxf6 {[%emt 0:00:00]} 47. Qf8+ {[%emt 0:00:00]} Qf7 {[%emt 0:00:00]} 48. Qxf7+ {[%emt 0:00:00]} Kxf7 {[%emt 0:00:00]} 49. Rxe5 {[%emt 0:00:00]} Kf6 {[%emt 0:00:00]} 50. Re4 {[%emt 0:00:00]} h6 {[%emt 0:00:00]} 51. Rxd4 {[%emt 0:00:00]} g5 {[%emt 0:00:00]} 52. hxg5+ {[%emt 0:00:00]} hxg5 {[%emt 0:00:00]} 53. c4 {[%emt 0:00:00]} Ke6 {[%emt 0:00:00]} 54. c5 {[%emt 0:00:00]} Ke5 {normal} 1-0

[Event "DVM U14w 2019"]
[Site "Neumuenster"]
[Date "2019.12.27"]
[Round "2"]
[White "von Beckh, Frieda"]
[Black "Zhou, Lepu Coco"]
[Result "0-1"]
[ECO "C55"]
[WhiteElo "1513"]
[BlackElo "1892"]
[Annotator "NA"]
[PlyCount "53"]
[EventDate "2019.12.27"]
[EventType "team-tourn"]
[EventRounds "7"]
[EventCountry "GER"]
[SourceTitle "playchess.com"]
[Source "ChessBase"]
[SourceQuality "1"]
[WhiteTeam "SV Multatuli Ingelheim"]
[BlackTeam "USV Halle"]
[TimeControl "40/5400+30:1800+30"]

1. e4 {[%emt 0:00:00]} e5 {[%emt 0:00:00]} 2. Nf3 {[%emt 0:00:00]} Nc6 {[%emt 0:00:00]} 3. d4 {[%emt 0:00:00]} exd4 {[%emt 0:00:00]} 4. Bc4 {[%emt 0:00:00]} Nf6 {[%emt 0:00:00]} 5. O-O {[%emt 0:00:00]} Bc5 {[%emt 0:00:32]} 6. Re1 {[%emt 0:00:50]} O-O {[%emt 0:00:17]} 7. Bg5 {[%emt 0:00:17]} h6 {[%emt 0:00:57]} 8. Bh4 {[%emt 0:03:00]} d6 {[%emt 0:01:07]} 9. e5 {[%emt 0:01:20]} dxe5 {[%emt 0:00:44]} 10. Nxe5 {[%emt 0:00:16]} Nxe5 {[%emt 0:01:19]} 11. Rxe5 {[%emt 0:00:18]} Bd6 {[%emt 0:00:54]} 12. Rb5 {[%emt 0:01:22]} a6 {[%emt 0:01:48]} 13. Rb3 {[%emt 0:00:21]} b5 {[%emt 0:00:13]} 14. Bd5 {[%emt 0:00:50]} Bxh2+ {[%emt 0:00:24]} 15. Kxh2 {[%emt 0:00:10]} Qxd5 {[%emt 0:00:06]} 16. Bxf6 {[%emt 0:01:18]} Qd6+ {[%emt 0:00:13]} 17. Rg3 {[%emt 0:00:27]} Qxf6 {[%emt 0:00:12]} 18. Qd2 {[%emt 0:00:41]} Bb7 {[%emt 0:01:28]} 19. c3 {[%emt 0:02:09]} Rad8 {[%emt 0:00:44]} 20. Kg1 {[%emt 0:01:48]} dxc3 {[%emt 0:00:42]} 21. Qxc3 {[%emt 0:00:10]} Rd1+ {[%emt 0:00:10]} 22. Kh2 {[%emt 0:00:22]} Qh4+ {[%emt 0:00:43]} 23. Rh3 {[%emt 0:00:11]} Qxf2 {[%emt 0:00:14]} 24. Rg3 {[%emt 0:00:52]} Qg1+ {[%emt 0:00:46]} 25. Kh3 {[%emt 0:00:08]} Bc8+ {[%emt 0:00:07]} 26. Kh4 Qh1+ 27. Rh3 {normal} 0-1

[Event "DVM U14w 2019"]
[Site "Neumuenster"]
[Date "2019.12.27"]
[Round "2"]
[White "Berghold, Lotta"]
[Black "Reuter, Elisa"]
[Result "0-1"]
[ECO "A49"]
[WhiteElo "1398"]
[BlackElo "1850"]
[Annotator "NA"]
[PlyCount "122"]
[EventDate "2019.12.27"]
[EventType "team-tourn"]
[EventRounds "7"]
[EventCountry "GER"]
[SourceTitle "playchess.com"]
[Source "ChessBase"]
[SourceQuality "1"]
[WhiteTeam "SC Borussia Lichtenberg"]
[BlackTeam "SG Leipzig"]
[TimeControl "40/5400+30:1800+30"]

1. d4 {[%emt 0:00:00]} Nf6 {[%emt 0:00:00]} 2. Nf3 {[%emt 0:00:00]} g6 {[%emt 0:00:00]} 3. g3 {[%emt 0:00:00]} Bg7 {[%emt 0:00:00]} 4. Bg2 {[%emt 0:00:00]} O-O {[%emt 0:00:00]} 5. O-O {[%emt 0:00:00]} d5 {[%emt 0:00:00]} 6. b3 {[%emt 0:00:42]} c5 {[%emt 0:03:34]} 7. Bb2 {[%emt 0:01:54]} Ne4 {[%emt 0:01:45]} 8. Qc1 {[%emt 0:05:53]} Nc6 {[%emt 0:01:52]} 9. dxc5 {[%emt 0:01:06]} Nxc5 {[%emt 0:04:44]} 10. Bxg7 {[%emt 0:02:01]} Kxg7 {[%emt 0:00:08]} 11. Rd1 {[%emt 0:09:17]} e5 {[%emt 0:05:18]} 12. e3 {[%emt 0:12:32]} e4 {[%emt 0:02:44]} 13. Qb2+ {[%emt 0:02:23]} Qf6 {[%emt 0:02:18]} 14. Qxf6+ {[%emt 0:00:51]} Kxf6 {[%emt 0:00:05]} 15. Nd4 {[%emt 0:00:40]} Be6 {[%emt 0:01:50]} 16. Nc3 {[%emt 0:05:00]} Rfd8 {[%emt 0:03:59]} 17. h3 {[%emt 0:05:52]} Rac8 {[%emt 0:02:11]} 18. Nce2 {[%emt 0:04:42]} Ne5 {[%emt 0:03:45]} 19. Rd2 {[%emt 0:02:33]} g5 {[%emt 0:06:53]} 20. g4 {[%emt 0:11:23]} Ncd7 {[%emt 0:06:38]} 21. Rad1 {[%emt 0:06:05]} Ke7 {[%emt 0:01:43]} 22. Ng3 {[%emt 0:01:23]} Nf6 {[%emt 0:01:03]} 23. a3 {[%emt 0:03:40]} a6 {[%emt 0:01:23]} 24. Kf1 {[%emt 0:04:12]} Rd7 {[%emt 0:03:11]} 25. Re2 {[%emt 0:03:33]} h5 {[%emt 0:04:28]} 26. gxh5 {[%emt 0:05:23]} Rh8 {[%emt 0:00:46]} 27. Ngf5+ {[%emt 0:01:10]} Kd8 {[%emt 0:01:30]} 28. h6 {[%emt 0:01:52]} Ng8 {[%emt 0:01:09]} 29. Red2 {[%emt 0:03:13]} Nxh6 {[%emt 0:00:41]} 30. Nxe6+ {[%emt 0:01:40]} fxe6 {[%emt 0:00:07]} 31. Nxh6 {[%emt 0:00:46]} Rxh6 {[%emt 0:00:07]} 32. Ke2 {[%emt 0:00:45]} b5 {[%emt 0:02:43]} 33. Rd4 {[%emt 0:02:23]} Ke8 {[%emt 0:00:57]} 34. R4d2 {[%emt 0:01:16]} Rf7 {[%emt 0:01:08]} 35. Rf1 {[%emt 0:00:31]} Rhf6 {[%emt 0:02:18]} 36. Ke1 {[%emt 0:01:28]} Rh7 {[%emt 0:04:05]} 37. Ke2 {[%emt 0:00:59]} Kf7 {[%emt 0:02:29]} 38. Ke1 {[%emt 0:00:40]} Kg6 {[%emt 0:00:23]} 39. Ke2 {[%emt 0:00:36]} Rf8 {[%emt 0:00:24]} 40. Ke1 {[%emt 0:00:50]} Rc8 {[%emt 0:00:53]} 41. Kd1 {[%emt 0:02:23]} a5 {[%emt 0:00:49]} 42. Ke2 {[%emt 0:07:48]} Rc3 {[%emt 0:01:08]} 43. Ra1 {[%emt 0:02:28]} a4 {[%emt 0:02:39]} 44. Rb1 {[%emt 0:01:05]} Ra7 {[%emt 0:01:10]} 45. bxa4 {[%emt 0:01:33]} bxa4 {[%emt 0:00:04]} 46. Kd1 {[%emt 0:05:24]} Rxa3 {[%emt 0:00:38]} 47. Bf1 {[%emt 0:01:28]} Nf3 {[%emt 0:01:43]} 48. Re2 {[%emt 0:00:24]} Rc3 {[%emt 0:00:09]} 49. Ra1 {[%emt 0:01:19]} Rc6 {[%emt 0:00:54]} 50. Kc1 {[%emt 0:01:41]} a3 {[%emt 0:00:24]} 51. Kd1 {[%emt 0:01:37]} Kf6 {[%emt 0:05:26]} 52. Kc1 {[%emt 0:02:58]} Ke7 {[%emt 0:01:54]} 53. Kb1 {[%emt 0:00:51]} Rb6+ {[%emt 0:00:07]} 54. Kc1 {[%emt 0:00:08]} Rc6 {[%emt 0:03:38]} 55. Kb1 {[%emt 0:00:51]} Kd6 {[%emt 0:00:04]} 56. Ka2 {[%emt 0:00:19]} Kc5 {[%emt 0:00:36]} 57. c3 {[%emt 0:00:49]} Ne5 {[%emt 0:00:11] normal} 58. Kb1 {[%emt 0:01:52]} Rb6+ 59. Kc1 {[%emt 0:00:37]} Nd3+ {[%emt 0:00:22]} 60. Kc2 {[%emt 0:01:26] normal} Rab7 {[%emt 0:01:17]} 61. Bg2 {[%emt 0:01:20]} Rb2+ {[%emt 0:00:05] normal} 0-1

[Event "DVM U14w 2019"]
[Site "Neumuenster"]
[Date "2019.12.27"]
[Round "2"]
[White "Klühs, Isabel"]
[Black "Nguyen, Jenny Ha-Linh"]
[Result "1/2-1/2"]
[ECO "A48"]
[WhiteElo "1363"]
[BlackElo "1387"]
[Annotator "NA"]
[PlyCount "74"]
[EventDate "2019.12.27"]
[EventType "team-tourn"]
[EventRounds "7"]
[EventCountry "GER"]
[SourceTitle "playchess.com"]
[Source "ChessBase"]
[SourceQuality "1"]
[WhiteTeam "SC Borussia Lichtenberg"]
[BlackTeam "SG Leipzig"]
[TimeControl "40/5400+30:1800+30"]

1. d4 {[%emt 0:00:00]} Nf6 {[%emt 0:00:00]} 2. Nf3 {[%emt 0:00:00]} g6 {[%emt 0:00:00]} 3. e3 {[%emt 0:00:00]} Bg7 {[%emt 0:00:00]} 4. Bd3 {[%emt 0:00:01]} O-O {[%emt 0:00:03]} 5. O-O {[%emt 0:00:04]} d6 {[%emt 0:00:03]} 6. c3 {[%emt 0:00:26]} Nbd7 {[%emt 0:00:18]} 7. Nbd2 {[%emt 0:00:44]} e5 {[%emt 0:00:09]} 8. Re1 {[%emt 0:01:10]} Nd5 {[%emt 0:04:40]} 9. dxe5 {[%emt 0:03:06]} Nxe5 {[%emt 0:00:56]} 10. Nxe5 {[%emt 0:00:07]} dxe5 {[%emt 0:00:21]} 11. Nf3 {[%emt 0:00:35]} c6 {[%emt 0:02:40]} 12. e4 {[%emt 0:00:10]} Nb6 {[%emt 0:01:32]} 13. h3 {[%emt 0:01:02]} Qc7 {[%emt 0:01:17]} 14. Bc2 {[%emt 0:01:00]} h6 {[%emt 0:03:48]} 15. Be3 {[%emt 0:00:36]} Be6 {[%emt 0:00:41]} 16. Qc1 {[%emt 0:00:19]} Kh7 {[%emt 0:00:14]} 17. Nd2 {[%emt 0:06:26]} Rad8 {[%emt 0:02:11]} 18. Rd1 {[%emt 0:02:27]} Rfe8 {[%emt 0:10:23]} 19. Bb3 {[%emt 0:00:29]} Bxb3 {[%emt 0:00:30]} 20. Nxb3 {[%emt 0:00:06]} Nc4 {[%emt 0:00:17]} 21. Rxd8 {[%emt 0:02:15]} Rxd8 {[%emt 0:00:10]} 22. Qe1 {[%emt 0:00:09]} Nxe3 {[%emt 0:00:54]} 23. Qxe3 {[%emt 0:00:07]} b6 {[%emt 0:00:07]} 24. Qf3 {[%emt 0:00:39]} Qd7 {[%emt 0:01:01]} 25. Kf1 {[%emt 0:01:10]} a5 {[%emt 0:04:14]} 26. a4 {[%emt 0:00:20]} Qe6 {[%emt 0:00:48]} 27. Nc1 {[%emt 0:02:02]} Rd2 {[%emt 0:11:27]} 28. Rb1 {[%emt 0:00:29]} Qd7 {[%emt 0:00:45]} 29. Nb3 {[%emt 0:00:40]} Rd3 {[%emt 0:02:55]} 30. Qe2 {[%emt 0:00:35]} Rd6 {[%emt 0:03:22]} 31. h4 {[%emt 0:05:20]} h5 {[%emt 0:02:50]} 32. g3 {[%emt 0:00:20]} Bh6 {[%emt 0:01:03]} 33. Ke1 {[%emt 0:02:06]} Qe6 {[%emt 0:00:31]} 34. c4 {[%emt 0:00:38]} Qd7 {[%emt 0:06:44]} 35. Rd1 {[%emt 0:00:45]} Rxd1+ {[%emt 0:00:18]} 36. Qxd1 {[%emt 0:00:09]} Qxd1+ {[%emt 0:02:41]} 37. Kxd1 {[%emt 0:00:05]} Bf8 {[%emt 0:00:38] normal} 1/2-1/2